Workbook

Sheet Spiral Comps
A1: Spiral Computations, v1.2 | K1: 2023-12-16
A2: PI Station | B2: 6300 | F2: Random comp
A3: Total ∆ | B3: 38 | C3: DD.MMSSs | F3: Spiral arc | G3: 180
A4: R for Circular Arc | B4: 2500 | F4: Defl ang | G4: =IF(G5="too long","",FormatAngle(ddtodms((G5/$B$5)^2*($B$9/3)),1)) -> +0°27'00.1"
A5: Spiral Length, Ls | B5: 275 | F5: Chord | G5: =IF(G3>B5,"too long",G3) -> 180
A7: Spiral Components | E7: Arc Components | J7: Stationing
A8: D change rate, k | B8: =G8/B5 -> 0.008333934545 | C8: deg/linear unit | F8: Deg Curve | G8: =5729.58/B4 -> 2.291832 | H8: Dec deg | J8: Spiral Tangent, Ts | K8: =B12-B4*SIN(RADIANS(B9))+(B4+G16)*TAN(RADIANS(DMStoDD(B3)/2)) -> 998.7763133
A9: Spiral Angle, ∆s | B9: =(B5*G8)/200 -> 3.151269 | C9: Dec Deg | G9: =FormatAngle(ddtodms(G8),1) -> +2°17'30.6" | H9: DMS | J9: TS | K9: =B2-K8 -> 5301.223687
A10: Spiral Angle, ∆s | B10: =FormatAngle(ddtodms(B9),1) -> +3°09'04.6" | F10: Central angle, ∆c | G10: =(DMStoDD(B3)-2*B9) -> 31.697462 | H10: Dec deg | J10: SC | K10: =K9+B5 -> 5576.223687
A11: Spiral Defl angle, A | B11: =FormatAngle(ddtodms(B9/3),1) -> +1°03'01.5" | G11: =FormatAngle(ddtodms(G10),1) -> +31°41'50.9" | H11: DMS | J11: CS | K11: =K10+G12 -> 6959.285883
A12: Tan dist to end, X | B12: =B5-B14^2/(2*B5) -> 274.9537899 | C12: Approx Method | F12: Arc length, Lc | G12: =100*G10/G8 -> 1383.062197 | J12: ST Bk | K12: =K11+B5 -> 7234.285883
B13: =N25 -> 274.9168241 | C13: Power Series | F13: Long chord, LCC | G13: =2*B4*SIN(RADIANS(G10)/2) -> 1365.492653 | J13: ST Ah | K13: =B2+K8 -> 7298.776313
A14: Tan offset to end, Y | B14: =B5*SIN(RADIANS(B9/3)) -> 5.041386047 | C14: Approx Method | F14: Tangent, TC | G14: =B4*TAN(RADIANS(G10/2)) -> 709.7257957
B15: =O25 -> 5.040577411 | C15: Power Series | F15: Tan dist to OPC, xo | G15: =B12-B4*SIN(RADIANS(B9)) -> 137.5230532
F16: Tan offset to OPC, o | G16: =B14-B4*(1-COS(RADIANS(B9))) -> 1.261086438
A17: Five-chord Spiral
A18: Chord Length | B18: =$B$5/5 -> 55
B19: Entrance | C19: Exit | D19: Approx method | H19: Tangent Offset Method | M19: Power series
A20: Num | B20: Sta | C20: Sta | D20: Arc dist, li | E20: Radius, Ri | F20: Defl ang, ai | H20: Dist, xi | I20: Offset, yi | J20: Chord, ci | K20: Defl ang, ai | M20: δi, radians | N20: Tan dist, xi | O20: Tan offset, yi | P20: Chord, ci | Q20: Defl ang, ai
A21: 1 | B21: =K9+$B$18 -> 5356.223687 | C21: =C22-$B$18 -> 6959.285883 | D21: =B18 -> 55 | E21: =$B$4*$B$5/D21 -> 12500 | F21: =FormatAngle(ddtodms((D21/$B$5)^2*($B$9/3)),1) -> +0°02'31.3" | H21: =D21-I21^2/(2*D21) -> 54.99998521 | I21: =D21^3/(6*$B$4*$B$5) -> 0.04033333333 | J21: =SQRT(H21^2+I21^2) -> 55 | K21: =FormatAngle(ddtodms(DEGREES(ATAN(I21/H21))),1) -> +0°02'31.3" | M21: =(D21^2/(2*$B$4*$B$5)) -> 0.0022 | N21: =D21*(1-M21^2/(5*FACT(2))+M21^4/(9*FACT(4))-M21^6/(13*FACT(6))+M21^8/(17*FACT(8))) -> 54.99997338 | O21: =D21*(M21/3-M21^3/(7*FACT(3))+M21^5/(11*FACT(5))-M21^7/(15*FACT(7))) -> 0.04033331939 | P21: =SQRT(N21^2+O21^2) -> 54.99998817 | Q21: =FormatAngle(ddtodms(DEGREES(ATAN(O21/N21))),1) -> +0°02'31.3"
A22: 2 | B22: =B21+$B$18 -> 5411.223687 | C22: 7014.285883 | D22: =D21+$B$18 -> 110 | E22: =$B$4*$B$5/D22 -> 6250 | F22: =FormatAngle(ddtodms((D22/$B$5)^2*($B$9/3)),1) -> +0°10'05.0" | H22: =D22-I22^2/(2*D22) -> 109.9995268 | I22: =D22^3/(6*$B$4*$B$5) -> 0.3226666667 | J22: =SQRT(H22^2+I22^2) -> 110 | K22: =FormatAngle(ddtodms(DEGREES(ATAN(I22/H22))),1) -> +0°10'05.0" | M22: =(D22^2/(2*$B$4*$B$5)) -> 0.0088 | N22: =D22*(1-M22^2/(5*FACT(2))+M22^4/(9*FACT(4))-M22^6/(13*FACT(6))+M22^8/(17*FACT(8))) -> 109.9991482 | O22: =D22*(M22/3-M22^3/(7*FACT(3))+M22^5/(11*FACT(5))-M22^7/(15*FACT(7))) -> 0.3226648819 | P22: =SQRT(N22^2+O22^2) -> 109.9996214 | Q22: =FormatAngle(ddtodms(DEGREES(ATAN(O22/N22))),1) -> +0°10'05.0"
A23: 3 | B23: =B22+$B$18 -> 5466.223687 | C23: 7069.285883 | D23: =D22+$B$18 -> 165 | E23: =$B$4*$B$5/D23 -> 4166.666667 | F23: =FormatAngle(ddtodms((D23/$B$5)^2*($B$9/3)),1) -> +0°22'41.3" | H23: =D23-I23^2/(2*D23) -> 164.9964063 | I23: =D23^3/(6*$B$4*$B$5) -> 1.089 | J23: 165 | K23: =FormatAngle(ddtodms(DEGREES(ATAN(I23/H23))),1) -> +0°22'41.4" | M23: =(D23^2/(2*$B$4*$B$5)) -> 0.0198 | N23: =D23*(1-M23^2/(5*FACT(2))+M23^4/(9*FACT(4))-M23^6/(13*FACT(6))+M23^8/(17*FACT(8))) -> 164.9935315 | O23: =D23*(M23/3-M23^3/(7*FACT(3))+M23^5/(11*FACT(5))-M23^7/(15*FACT(7))) -> 1.088969505 | P23: =SQRT(N23^2+O23^2) -> 164.9971251 | Q23: =FormatAngle(ddtodms(DEGREES(ATAN(O23/N23))),1) -> +0°22'41.3"
A24: 4 | B24: 5521.223687 | C24: =C25-$B$18 -> 7124.285883 | D24: =D23+$B$18 -> 220 | E24: =$B$4*$B$5/D24 -> 3125 | F24: =FormatAngle(ddtodms((D24/$B$5)^2*($B$9/3)),1) -> +0°40'20.2" | H24: =D24-I24^2/(2*D24) -> 219.9848562 | I24: =D24^3/(6*$B$4*$B$5) -> 2.581333333 | J24: 220.0000005 | K24: =FormatAngle(ddtodms(DEGREES(ATAN(I24/H24))),1) -> +0°40'20.2" | M24: =(D24^2/(2*$B$4*$B$5)) -> 0.0352 | N24: =D24*(1-M24^2/(5*FACT(2))+M24^4/(9*FACT(4))-M24^6/(13*FACT(6))+M24^8/(17*FACT(8))) -> 219.9727427 | O24: =D24*(M24/3-M24^3/(7*FACT(3))+M24^5/(11*FACT(5))-M24^7/(15*FACT(7))) -> 2.581104887 | P24: =SQRT(N24^2+O24^2) -> 219.9878852 | Q24: =FormatAngle(ddtodms(DEGREES(ATAN(O24/N24))),1) -> +0°40'20.1"
A25: 5 | B25: 5576.223687 | C25: =K12-$B$18 -> 7179.285883 | D25: =D24+$B$18 -> 275 | E25: =$B$4*$B$5/D25 -> 2500 | F25: =FormatAngle(ddtodms((D25/$B$5)^2*($B$9/3)),1) -> +1°03'01.5" | H25: =D25-I25^2/(2*D25) -> 274.9537847 | I25: =D25^3/(6*$B$4*$B$5) -> 5.041666667 | J25: 275.0000039 | K25: =FormatAngle(ddtodms(DEGREES(ATAN(I25/H25))),1) -> +1°03'01.7" | M25: =(D25^2/(2*$B$4*$B$5)) -> 0.055 | N25: =D25*(1-M25^2/(5*FACT(2))+M25^4/(9*FACT(4))-M25^6/(13*FACT(6))+M25^8/(17*FACT(8))) -> 274.9168241 | O25: =D25*(M25/3-M25^3/(7*FACT(3))+M25^5/(11*FACT(5))-M25^7/(15*FACT(7))) -> 5.040577411 | P25: =SQRT(N25^2+O25^2) -> 274.9630296 | Q25: =FormatAngle(ddtodms(DEGREES(ATAN(O25/N25))),1) -> +1°03'01.4"
A27: Ten-chord Spiral
A28: Chord Length | B28: =$B$5/10 -> 27.5
B29: Entrance | C29: Exit | D29: Approx method | M29: Power series
A30: Num | B30: Sta | C30: Sta | D30: Arc dist, li | E30: Radius, ri | F30: Defl ang, ai | H30: Dist, xi | I30: Offset, yi | J30: Chord, ci | K30: Defl ang, ai | M30: δi, radians | N30: Tan dist, xi | O30: Tan offset, yi | P30: Chord, ci | Q30: Defl ang, ai
A31: 1 | B31: =K9+$B$28 -> 5328.723687 | C31: =C32-$B$28 -> 6959.285883 | D31: =B28 -> 27.5 | E31: =$B$4*$B$5/D31 -> 25000 | F31: =FormatAngle(ddtodms((D31/$B$5)^2*($B$9/3)),1) -> +0°00'37.8" | H31: =D31-I31^2/(2*D31) -> 27.49999954 | I31: =D31^3/(6*$B$4*$B$5) -> 0.005041666667 | J31: =SQRT(H31^2+I31^2) -> 27.5 | K31: =FormatAngle(ddtodms(DEGREES(ATAN(I31/H31))),1) -> +0°00'37.8" | M31: =(D31^2/(2*$B$4*$B$5)) -> 0.00055 | N31: =D31*(1-M31^2/(5*FACT(2))+M31^4/(9*FACT(4))-M31^6/(13*FACT(6))+M31^8/(17*FACT(8))) -> 27.49999917 | O31: =D31*(M31/3-M31^3/(7*FACT(3))+M31^5/(11*FACT(5))-M31^7/(15*FACT(7))) -> 0.005041666558 | P31: =SQRT(N31^2+O31^2) -> 27.49999963 | Q31: =FormatAngle(ddtodms(DEGREES(ATAN(O31/N31))),1) -> +0°00'37.8"
A32: 2 | B32: =B31+$B$28 -> 5356.223687 | C32: 6986.785883 | D32: =D31+$B$28 -> 55 | E32: 12500 | F32: =FormatAngle(ddtodms((D32/$B$5)^2*($B$9/3)),1) -> +0°02'31.3" | H32: 54.99998521 | I32: 0.04033333333 | J32: =SQRT(H32^2+I32^2) -> 55 | K32: =FormatAngle(ddtodms(DEGREES(ATAN(I32/H32))),1) -> +0°02'31.3" | M32: 0.0022 | N32: 54.99997338 | O32: 0.04033331939 | P32: =SQRT(N32^2+O32^2) -> 54.99998817 | Q32: =FormatAngle(ddtodms(DEGREES(ATAN(O32/N32))),1) -> +0°02'31.3"
A33: 3 | B33: =B32+$B$28 -> 5383.723687 | C33: 7014.285883 | D33: =D32+$B$28 -> 82.5 | E33: 8333.333333 | F33: =FormatAngle(ddtodms((D33/$B$5)^2*($B$9/3)),1) -> +0°05'40.3" | H33: 82.4998877 | I33: 0.136125 | J33: 82.5 | K33: =FormatAngle(ddtodms(DEGREES(ATAN(I33/H33))),1) -> +0°05'40.3" | M33: 0.00495 | N33: 82.49979785 | O33: 0.1361247618 | P33: =SQRT(N33^2+O33^2) -> 82.49991016 | Q33: =FormatAngle(ddtodms(DEGREES(ATAN(O33/N33))),1) -> +0°05'40.3"
A34: 4 | B34: 5411.223687 | C34: 7041.785883 | D34: 110 | E34: 6250 | F34: =FormatAngle(ddtodms((D34/$B$5)^2*($B$9/3)),1) -> +0°10'05.0" | H34: 109.9995268 | I34: 0.3226666667 | J34: 110 | K34: =FormatAngle(ddtodms(DEGREES(ATAN(I34/H34))),1) -> +0°10'05.0" | M34: 0.0088 | N34: 109.9991482 | O34: 0.3226648819 | P34: 109.9996214 | Q34: =FormatAngle(ddtodms(DEGREES(ATAN(O34/N34))),1) -> +0°10'05.0"
A35: 5 | B35: 5438.723687 | C35: 7069.285883 | D35: 137.5 | E35: 5000 | F35: =FormatAngle(ddtodms((D35/$B$5)^2*($B$9/3)),1) -> +0°15'45.4" | H35: 137.4985558 | I35: 0.6302083333 | J35: 137.5 | K35: =FormatAngle(ddtodms(DEGREES(ATAN(I35/H35))),1) -> +0°15'45.4" | M35: 0.01375 | N35: 137.4974004 | O35: 0.6301998228 | P35: 137.4988446 | Q35: =FormatAngle(ddtodms(DEGREES(ATAN(O35/N35))),1) -> +0°15'45.4"
A36: 6 | B36: 5466.223687 | C36: 7096.785883 | D36: 165 | E36: 4166.666667 | F36: =FormatAngle(ddtodms((D36/$B$5)^2*($B$9/3)),1) -> +0°22'41.3" | H36: 164.9964063 | I36: 1.089 | J36: 165 | K36: =FormatAngle(ddtodms(DEGREES(ATAN(I36/H36))),1) -> +0°22'41.4" | M36: 0.0198 | N36: 164.9935315 | O36: 1.088969505 | P36: 164.9971251 | Q36: =FormatAngle(ddtodms(DEGREES(ATAN(O36/N36))),1) -> +0°22'41.3"
A37: 7 | B37: 5493.723687 | C37: 7124.285883 | D37: 192.5 | E37: 3571.428571 | F37: =FormatAngle(ddtodms((D37/$B$5)^2*($B$9/3)),1) -> +0°30'52.9" | H37: 192.4922326 | I37: 1.729291667 | J37: 192.5000002 | K37: =FormatAngle(ddtodms(DEGREES(ATAN(I37/H37))),1) -> +0°30'53.0" | M37: 0.02695 | N37: 192.4860191 | O37: 1.729201955 | P37: 192.4937862 | Q37: =FormatAngle(ddtodms(DEGREES(ATAN(O37/N37))),1) -> +0°30'52.9"
A38: 8 | B38: 5521.223687 | C38: 7151.785883 | D38: 220 | E38: 3125 | F38: =FormatAngle(ddtodms((D38/$B$5)^2*($B$9/3)),1) -> +0°40'20.2" | H38: 219.9848562 | I38: 2.581333333 | J38: 220.0000005 | K38: =FormatAngle(ddtodms(DEGREES(ATAN(I38/H38))),1) -> +0°40'20.2" | M38: 0.0352 | N38: 219.9727427 | O38: 2.581104887 | P38: 219.9878852 | Q38: =FormatAngle(ddtodms(DEGREES(ATAN(O38/N38))),1) -> +0°40'20.1"
A39: 9 | B39: 5548.723687 | C39: =C40-$B$28 -> 7179.285883 | D39: 247.5 | E39: 2777.777778 | F39: =FormatAngle(ddtodms((D39/$B$5)^2*($B$9/3)),1) -> +0°51'03.0" | H39: 247.4727103 | I39: 3.675375 | J39: 247.5000015 | K39: =FormatAngle(ddtodms(DEGREES(ATAN(I39/H39))),1) -> +0°51'03.1" | M39: 0.04455 | N39: 247.4508831 | O39: 3.674853995 | P39: 247.478169 | Q39: =FormatAngle(ddtodms(DEGREES(ATAN(O39/N39))),1) -> +0°51'03.0"
A40: 10 | B40: 5576.223687 | C40: =K12-$B$28 -> 7206.785883 | D40: 275 | E40: 2500 | F40: =FormatAngle(ddtodms((D40/$B$5)^2*($B$9/3)),1) -> +1°03'01.5" | H40: 274.9537847 | I40: 5.041666667 | J40: 275.0000039 | K40: =FormatAngle(ddtodms(DEGREES(ATAN(I40/H40))),1) -> +1°03'01.7" | M40: 0.055 | N40: 274.9168241 | O40: 5.040577411 | P40: 274.9630296 | Q40: =FormatAngle(ddtodms(DEGREES(ATAN(O40/N40))),1) -> +1°03'01.4"

Sheet Graphics
